Cogmind - Beta 12 @@@ ROGUE MODE // 2023.03.03 @ 19:32:49 Player: Plexion Result: Smashed by cave-in Performance ------------- Evolutions (0) 0 Regions Visited (2) 400 Robots Destroyed (26) 130 Value Destroyed (345) 345 Prototype IDs (0) 0 Alien Tech Used (0) 0 Bonus (53) 53 TOTAL SCORE: 928 Bonus ------- Follower Combat Kills 53 Cogmind --------- Core Integrity 0/250 Matter 300/300 Energy 160/160 System Corruption 0% Temperature Cool (0) Movement Rolling (130) Ox2 Location -10/Mines Parts ------- > --- POWER (1) -------- Light Nuclear Core > --- PROPULSION (2) --- Compact Wheel > --- UTILITY (2) ------ High-capacity Storage Unit > --- WEAPON (2) ------- (None) > --- INVENTORY (20) --- Light Ion Engine Light Treads Wheel Light Assault Rifle Grenade Launcher Grenade Launcher Grenade Launcher Peak State ------------ > --- POWER ------------ Ion Engine > --- PROPULSION ------- Light Treads Compact Wheel > --- UTILITY ---------- Small Storage Unit Weight Redist. System > --- WEAPON ----------- Small Laser Assault Rifle > --- INVENTORY -------- Light Ion Engine Grenade Launcher [Rating: 8] Favorites ----------- Power Ion Engine Engine Ion Engine Power Core Light Nuclear Core Propulsion Light Treads Treads Light Treads Wheel Compact Wheel Utility High-capacity Storage Unit Device Weight Redist. System Storage High-capacity Storage Unit Weapon Assault Rifle Energy Gun Small Laser Ballistic Gun Assault Rifle Build | -11 -10 -10 ------- Run | Jun Mat Min Slots Evolved . | . . . Power . | . . . Propulsion . | . . . Utility . | . . . Weapon . | . . . Parts Attached 18 | 6 10 2 Power 3 | 1 1 1 Engine 2 | 1 1 . Core 1 | . . 1 Reactor . | . . . Propulsion 6 | 2 3 1 Treads 4 | 2 2 . Leg . | . . . Wheel 2 | . 1 1 Hover . | . . . Flight . | . . . Utility 4 | 1 3 . Device 1 | . 1 . Storage 3 | 1 2 . Processor . | . . . Hackware . | . . . Protection . | . . . Artifact . | . . . Weapon 5 | 2 3 . Energy Gun 3 | . 3 . Energy Cannon . | . . . Ballistic Gun 2 | 2 . . Ballistic Cannon . | . . . Launcher . | . . . Special Weapon . | . . . Impact Weapon . | . . . Slashing Weapon . | . . . Piercing Weapon . | . . . Special Melee Weapon . | . . . Unidentified Prototypes . | . . . Parts Lost 4 | . . 4 Power 1 | . . 1 Propulsion 1 | . . 1 Utility . | . . . Weapon 2 | . . 2 Highest Loss Streak 3 | . . 3 To Critical Strikes . | . . . Average Slot Usage (%) 83 | . 82 84 Engine 8 | . 13 . Core 5 | . . 12 Treads 23 | . 21 27 Wheel 3 | . 5 . Storage 14 | . 14 14 Energy Gun 10 | . 8 14 Ballistic Gun 16 | . 18 13 Naked Turns . | . . . Heaviest Build 48 | 14 48 48 Greatest Support 40 | 40 40 40 Greatest Overweight (x) 2 | . 2 2 Average Overweight (x) . | . . 1 Largest Inventory Capacity 20 | 8 20 20 Average Capacity 14 | 7 11 20 Most Carried 7 | 2 6 7 Average Carried 3 | . 2 5 Final Capacity 20 | 8 20 20 Final Carried 7 | 2 5 7 Class Distribution -------------------- 100% | Mutant Dominant Class ---------------- Mutant | -10/Materials Mutant | -10/Mines Resources | -11 -10 -10 ----------- Run | Jun Mat Min Matter Collected 656 | 199 407 50 Remotely . | . . . Salvage Created 907 | . 788 119 Parts 50 | . 45 5 Haulers Intercepted 2 | . 2 . Recyclers Shooed 4 | . 3 1 Parts Field Recycled . | . . . Retrieved Matter . | . . . Parts Self-Destructed . | . . . Prevented . | . . . Kills | -11 -10 -10 ------- Run | Jun Mat Min Combat Hostiles Destroyed 11 | . 8 3 Guns 11 | . 8 3 Classes Destroyed 10 | . 10 . Worker 4 | . 4 . Builder 1 | . 1 . Tunneler 1 | . 1 . Hauler 2 | . 2 . Recycler 4 | . 4 . Mechanic 1 | . 1 . Operator 1 | . 1 . Watcher 1 | . 1 . Swarmer 6 | . 5 1 Grunt 5 | . 3 2 Best Kill Streak 9 | . 9 1 Combat Bots Only 3 | . 3 1 Max Kills in Single Turn 2 | . 2 1 Gunslinging . | . . . Exploded . | . . . Melee . | . . . Uniques/NPCs Destroyed . | . . . Combat | -11 -10 -10 -------- Run | Jun Mat Min Damage Taken 850 | . 310 540 Core 254 | . 71 183 Absorbed by Shields . | . . . Core Remaining (%) 100 | 100 . . Volleys Fired 81 | . 66 15 Largest 2 | . 2 2 Hottest 60 | . 60 60 Shots Fired 151 | . 121 30 Gun 151 | . 121 30 Cannon . | . . . Launcher . | . . . Special . | . . . Kinetic 97 | . 82 15 Thermal 54 | . 39 15 Explosive . | . . . Electromagnetic . | . . . Robot Hit Streak 13 | . 13 9 Robot Miss Streak 3 | . 3 2 Penetration Max . | . . . Secondary Targets 2 | . 1 1 Max Gunslinging Chain 1 | . 1 1 Shots Hit Robots 101 | . 81 20 Core Hits 44 | . 37 7 Critical Kills 1 | . . 1 Critical Parts Destroyed . | . . . Critical Strikes 1 | . . 1 Destroy 1 | . . 1 Melee Attacks . | . . . Impact . | . . . Slashing . | . . . Piercing . | . . . Sneak Attacks . | . . . Combat Hostiles . | . . . Follow-up Attacks . | . . . Damage Inflicted 1250 | . 1013 237 Guns 1250 | . 1013 237 Cannons . | . . . Explosions . | . . . Melee . | . . . Ramming . | . . . Kinetic 856 | . 717 139 Thermal 394 | . 296 98 Explosive . | . . . Electromagnetic . | . . . Impact . | . . . Slashing . | . . . Piercing . | . . . Highest Corruption . | . . . Average Corruption . | . . . Corruption Purged . | . . . Corruption Blocked . | . . . Overload Shots . | . . . Overflow Damage . | . . . Projectiles . | . . . Explosions . | . . . Melee . | . . . Knockbacks . | . . . Impact . | . . . Kinetic . | . . . Secondary . | . . . Self-Inflicted Damage . | . . . Shots . | . . . Rammed . | . . . Targets Rammed . | . . . Kicked . | . . . Crushed . | . . . Highest Temperature 79 | . 36 79 Average Temperature 33 | . 17 39 Received Heat Transfer 255 | . 102 153 Siege Activations . | . . . Robots Corrupted . | . . . Combat Hostiles . | . . . Parts Fried . | . . . Impact Corruptions . | . . . Robots Melted . | . . . Combat Hostiles . | . . . Parts Melted 1 | . . 1 Heat Transferred 900 | . 675 225 Parts Sabotaged . | . . . Parts Stolen . | . . . Parts Stripped . | . . . Power Chain Reactions . | . . . Missiles Intercepted . | . . . Alert | -11 -10 -10 ------- Run | Jun Mat Min Peak Influence 207 | . 207 119 Initial 22 | . . 22 Average 75 | . 97 52 Maximum Alert Level 1 | . 1 . Low Security (%) 97 | 100 96 100 Level 1 2 | . 3 . Level 2 . | . . . Level 3 . | . . . Level 4 . | . . . Level 5 . | . . . High Security . | . . . Max Security . | . . . Squads Dispatched 2 | . 2 . Investigation . | . . . Extermination . | . . . Reinforcement 2 | . 2 . Assault . | . . . Garrison . | . . . Intercept . | . . . Searches Triggered . | . . . Construction Impeded . | . . . Haulers Reinforced . | . . . Active Scanning Responses . | . . . Cargo Convoy Interrupts . | . . . Stealth | -11 -10 -10 --------- Run | Jun Mat Min Distress Signals 1 | . 1 . Communications Jammed . | . . . Distress Signals . | . . . Times Spotted 26 | . 19 7 Peak Tracking Total 4 | . 4 3 Tactical Retreats 1 | . 1 . Traps | -11 -10 -10 ------- Run | Jun Mat Min Traps Triggered 3 | . 3 . Indirectly . | . . . Trap Hack Attempts . | . . . Triggered . | . . . Disarmed 6 | . 6 . Reprogrammed . | . . . Reused . | . . . Traps Extracted . | . . . Installed . | . . . Triggered . | . . . Machines | -11 -10 -10 ---------- Run | Jun Mat Min Machines Disabled . | . . . Max in Single Turn . | . . . Machines Repaired . | . . . Machines Sabotaged . | . . . Overloaded Fab Kills . | . . . Hacking | -11 -10 -10 --------- Run | Jun Mat Min Machines Accessed 4 | . 4 . Terminals 4 | . 4 . Fabricators . | . . . Repair Stations . | . . . Recycling Units . | . . . Scanalyzers . | . . . Garrison Access . | . . . Total Hacks 11 | . 11 . Successful 4 | . 4 . Failed 7 | . 7 . Catastrophic . | . . . Database Lockouts . | . . . Manual 11 | . 11 . Terminals 11 | . 11 . Fabricators . | . . . Repair Stations . | . . . Recycling Units . | . . . Scanalyzers . | . . . Garrison Access . | . . . Terminal Hacks 2 | . 2 . Robot Analysis 1 | . 1 . Disarm Traps 1 | . 1 . Fabricator Hacks . | . . . Repair Station Hacks . | . . . Recycling Unit Hacks . | . . . Scanalyzer . | . . . Garrison Access Hacks . | . . . Unauthorized Hacks 2 | . 2 . Terminals 2 | . 2 . Botnet 2 | . 2 . Fabricators . | . . . Repair Stations . | . . . Recycling Units . | . . . Scanalyzers . | . . . Garrison Access . | . . . Data Cores Recovered . | . . . Used . | . . . Hacking Detections 3 | . 3 . Full Trace Events . | . . . Feedback Events . | . . . Feedback Blocked . | . . . Robot Schematics Acquired . | . . . Robots Built . | . . . Authchips . | . . . Time . | . . . Total Robot Build Rating . | . . . Part Schematics Acquired . | . . . Parts Built . | . . . Authchips . | . . . Time . | . . . Total Part Build Rating . | . . . Parts Repaired . | . . . Time . | . . . Parts Recycled . | . . . Recycled Matter . | . . . Retrieved Matter . | . . . Retrieved Components . | . . . Parts Scanalyzed . | . . . Part Schematics Acquired . | . . . Parts Damaged . | . . . Bothacking | -11 -10 -10 ------------ Run | Jun Mat Min Used RIF Installer . | . . . Robots Hacked . | . . . Non-combat . | . . . Combat . | . . . Robot Hacks Applied . | . . . Relay Couplers Released . | . . . Fabnet Peak Effective % . | . . . Robots Rewired . | . . . Allies Hacked . | . . . Hacks Repelled . | . . . Allies | -11 -10 -10 -------- Run | Jun Mat Min Total Allies 3 | . . 3 Largest Group 3 | . . 3 Highest-Rated Group 40 | . . 40 Highest-Rated Ally 16 | . . 16 Total Orders . | . . . Ally Attacks 17 | . . 17 Total Damage 129 | . . 129 Kills 3 | . . 3 Allies Corrupted . | . . . Allies Melted . | . . . Intel | -11 -10 -10 ------- Run | Jun Mat Min Robot Analysis Total 1 | . 1 . Derelict Logs Recovered 1 | . . 1 Drone Launches . | . . . Drone Recoveries . | . . . Exploration | -11 -10 -10 ------------- Run | Jun Mat Min Turns Passed 1652 | 81 946 625 Spaces Moved 763 | 47 474 242 Core 4 | 4 . . Treads 547 | 43 267 237 Legs . | . . . Wheels 212 | . 207 5 Hover . | . . . Flight . | . . . Fastest Speed 50 | 50 100 130 Average Speed 179 | 150 152 237 Slowest Speed 240 | 160 240 240 Overloaded Moves . | . . . Propulsion Burnouts . | . . . Robots Hopped . | . . . Cave-ins Triggered 1 | . . 1 Exploration Rate (%) 43 | 4 70 57 Regions Visited 2 Branch Regions 1 Pre-discovered Areas 1 | . . 1 Known Exits Taken . | . . . Unknown Exits Taken 2 | 1 1 . Scrap Searched . | . . . Spaces Dug . | . . . Terrain Destroyed . | . . . Melee . | . . . Projectile . | . . . AOE . | . . . Terrain Rammed . | . . . Walls Destroyed . | . . . Machines Disabled . | . . . Actions | -11 -10 -10 --------- Run | Jun Mat Min Total 891 | 54 576 261 Wait 17 | . 17 . Move 761 | 46 473 242 Hop . | . . . Pick Up 7 | 2 3 2 Fast Attach 14 | 6 7 1 Attach 2 | . 2 . Detach 4 | . 4 . Swap 2 | . 1 1 Drop 3 | . 3 . Fire 81 | . 66 15 Melee . | . . . Ram . | . . . Kick . | . . . Crush . | . . . Escape Stasis . | . . . Rewire . | . . . Trap . | . . . Miscellaneous . | . . . Route ------- -11/Junkyard -10/Materials (discovered 4 exits: [*Mat x2] / [*Min x2]) -10/Mines (discovered 1 exit: [*Mat]) History --------- Turn | Location | Event 5 | -11/Junkyard | Discovered new exit (range 15) 82 | -11/Junkyard | Entered Materials 311 | -10/Materials | Build established: Mutant 315 | -10/Materials | Discovered new exit (range 6) 671 | -10/Materials | Discovered new exit (range 10) 767 | -10/Materials | Discovered new exit (range 16) 982 | -10/Materials | Discovered new exit (range 15) 1028 | -10/Materials | Entered Mines 1112 | -10/Mines | Assisted by bots powering up and referring to "LRC-V3" 1159 | -10/Mines | Assembled infested the area 1434 | -10/Mines | Learned location of Mines (-9) 1518 | -10/Mines | Discovered new exit (range 5) 1648 | -10/Mines | Core integrity fell below 50% 1654 | -10/Mines | Crushed by falling debris 1654 | -10/Mines | Smashed by cave-in Last Messages --------------- 01434_ Acquired derelict log, extracted data. World map updated: -9/Mines. 01484_ U-05 Engineer builds a Wall. 01489_ U-05 Engineer lays Concrete. 01494_ U-05 Engineer builds a Wall. 01499_ U-05 Engineer lays Concrete. 01503_ U-05 Engineer builds a Wall. 01507_ U-05 Engineer lays Concrete. 01508_ U-05 Engineer builds a Wall. 01513_ U-05 Engineer lays Concrete. 01517_ U-05 Engineer builds a Wall. 01518_ EXIT=FOUND 01563_ Acquired Wheel. 01645_ Trooper 1a destroyed. 01647_ Assault Rifle destroyed. 01651_ Sml. Laser destroyed. 01651_ Lgt. Treads destroyed. 01653_ D-53 Grenadier destroyed. 01654_ The unstable cave ceiling collapses. 01654_ Crushed by falling debris. Map ----- +----------------------------------------------------+ | ??????????????????????????????????????? | | ?????????####?????????????????????????? | | ????????## ##????????????????????????? | | ????????# #????????????????????????? | | ???????## #????????????????????????? | | ??????## #????????????????????????? | | ??????# ##???????????????????????? | | ??????# ##??????????????????????? | | ??????# """ #??????????????????????? | | ??????## """ ##?????????????????????? | | ???????## """ #####?????????????????? | | ????????# ##????????????????? | | ????????## ## #????????????????? | | ?????????######## ##????????????????? | | ????????????????## #?????????????????? | | ?????????###?????# #?????????????????? | | ????????## ##?### ###???#???????????? | | ???????## ### #?? ##??????????? | | ???????# ## g #? #??????????? | | ???????# #? #?#????????? | | ???????# # # #????????? | | ????????# #????????? | | ????????#### # ### ?????? | | ?????????# < # ????? | | ?????????# # ????? | | ???????? # @ ##????????? | | ???????## ## %d ##?????????? | | ????????##?# !% ##??????????? | | ???????????###### t #??????????? | | ??????????????### # ???????? | | ????????????### ##### ## #??????? | | ???????????## ## ### #? ?#??????? | | ??????##??## #####?# ??????????? | | ?????## ### # ##?????# #?????????? | | ?????# ##????## ?##?????????? | | ?????# ! %###????# ????????????? | | ?????# =% % #????? ????????????? | | ?????# %= *=###????? ##??????????? | | ?????####### % #??????? ??????????? | | ???????????## #???????? ??????????? | | ???????????## #####????=%=#??????????? | | ????????#### #????# #??????????# | | ????????# ## #????# #?????????? | | ????????# * #???##### #??????????? | | ????????# !%##???? #??????????? | | ???????## | #???????# #??????????? | | ???????# %##??????# #????####??? | | ??????## ##?????# #??### ##?# | | ??????# ####### #?## ### | | ??????# |%!! ### | +----------------------------------------------------+ Best States ------------- Heat Dissipation 25 Energy Generation 14 Energy Capacity 250 Matter Stores 300 Matter Capacity 300 Sight Range 16 Terrain Scan Density 10 Additional Mass Support 6 Evasion (%) 40 Recoil Reduction 2 Item Schematics ----------------- None Robot Schematics ------------------ None Fabricated ------------ Nothing Alien Tech Used ----------------- None Achievements -------------- None Challenges ------------ None Game ------ Seed SignalThiefClaws Manual? 0 Play Time 00:09:47 Cumulative 326.1 hours Start 2023.03.03 @ 19:18:25 End 2023.03.03 @ 19:32:49 Sessions 1 Manual Loads 0 Difficulty Rogue Special Mode None Game No. 431 Rogue 344 Adventurer 87 Explorer 0 Win Type - Total 12 Types 6/0/4/1/1/0/0/0/0 Lore% 85 Gallery% 86 Achievement% 73 Wizard Run 0 Options --------- ASCII 0 Keyboard 1 Movement Numpad Keybinds 0 Fullscreen 1 Font 18/SmallcapsGlow Map View 76x50 Tactical HUD 1 Map Filters NONE Filters NONE Steam 1 RUN: 19621fa3-66d0-4e1f-8aa8-28452b858cc1